fUST/lending_fUST_20250827
["ID","MTS","AMOUNT","RATE_DAILY","PERIOD"]
[381535323,1756266651428,-324.52,0.00031668,30]
[381535324,1756266651437,-721.652939,0.00031668,7]
[381535325,1756266651446,-721.652939,0.00031668,7]
[381535326,1756266651455,-721.652939,0.00031668,7]
[381535327,1756266651464,-721.652943,0.00031668,7]
[381535328,1756266651474,-151.0,0.00031668,7]
[381535329,1756266651483,-151.0,0.00031668,7]
[381535330,1756266651492,-151.0,0.00031668,7]
[381535331,1756266651501,-151.0,0.00031668,7]
[381535332,1756266651510,-236.003063,0.000317,20]
[381535333,1756266651520,-236.003063,0.000317,30]
[381535334,1756266651529,-151.24291427,0.00031704,2]
[381535335,1756266651539,-154.01,0.00031708,15]
[381535336,1756266651549,-332.6,0.00031722,15]
[381535337,1756266651558,-20559.3298506,0.00031725,2]
[381535338,1756266651570,-151.48,0.00031728,15]
[381535339,1756266651581,-335.74,0.00031728,15]
[381535340,1756266651590,-236.003063,0.00031745,20]
[381535341,1756266651600,-500.0,0.00031776,2]
[381535342,1756266651610,-900.0,0.00031777,7]
[381535343,1756266651619,-1600.40753912,0.00031777,2]
[381535344,1756266651628,-613.05136465,0.00031777,7]
[381535345,1756266651637,-236.003063,0.0003179,20]
[381535346,1756266651647,-13418.09,0.000318,2]
[381535347,1756266651656,-236.003063,0.000318,90]
[381535348,1756266651665,-321.5797,0.000318,2]
[381535349,1756266651674,-321.5797,0.000318,2]
[381535350,1756266651683,-6137.21,0.000318,7]
[381535351,1756266651693,-154.01,0.00031808,15]
[381535352,1756266651702,-332.6,0.00031822,15]
[381535353,1756266651712,-151.48,0.00031828,15]
[381535354,1756266651721,-335.74,0.00031828,15]
[381535355,1756266651730,-236.003063,0.00031835,20]
[381535356,1756266651740,-242.15909246,0.00031849,2]
[381535357,1756266651749,-236.003063,0.0003188,20]
[381535358,1756266651759,-15013.57394899,0.000319,2]
[381535359,1756266651769,-154.01,0.00031908,15]
[381535360,1756266651778,-332.6,0.00031922,15]
[381535361,1756266651792,-151.48,0.00031928,15]
[381535362,1756266651802,-335.74,0.00031928,15]
[381535363,1756266651812,-1871.06712213,0.00031986,17]
[381535364,1756266651823,-139837.29728897,0.00032,7]
[381535365,1756266651832,-1015.58950543,0.00032,2]
[381535366,1756266651841,-361.42610418,0.00032,120]
[381535367,1756266651850,-11750.0,0.00032,120]
[381535368,1756266651860,-30121.53225509,0.00032,7]
[381535369,1756266651870,-171.593238,0.00032,7]
[381535370,1756266651879,-171.593238,0.00032,7]
[381535371,1756266651888,-171.593238,0.00032,7]
[381535372,1756266651898,-171.593246,0.00032,7]
[381535373,1756266651907,-160.0,0.00032,120]
[381535374,1756266651917,-217.23771399,0.00032,30]
[381535375,1756266651927,-217.23771399,0.00032,120]
[381535376,1756266651937,-232.59867797,0.00032,30]
[381535377,1756266651946,-232.59867797,0.00032,120]
[381535378,1756266651956,-160.0,0.00032,30]
[381535379,1756266651965,-160.0,0.00032,120]
[381535380,1756266651975,-160.0,0.00032,30]
[381535381,1756266651984,-160.0,0.00032,120]
[381535382,1756266651994,-216.14835892,0.00032,30]
[381535383,1756266652004,-216.14835892,0.00032,120]
[381535384,1756266652013,-417.15472785,0.00032,30]
[381535385,1756266652022,-417.15472785,0.00032,120]
[381535386,1756266652031,-160.0,0.00032,30]
[381535387,1756266652041,-160.0,0.00032,120]
[381535388,1756266652051,-529.56067766,0.00032,30]
[381535389,1756266652061,-425.44119842,0.00032,30]
[381535390,1756266652071,-154.01,0.00032008,15]
[381535391,1756266652081,-332.6,0.00032022,15]
[381535392,1756266652090,-151.48,0.00032028,15]
[381535393,1756266652100,-335.74,0.00032028,15]
[381535394,1756266652110,-500.0,0.0003205,2]
[381535395,1756266652119,-346.29037837,0.00032069,49]
[381535396,1756266652129,-5173.28,0.000321,7]
[381535397,1756266652139,-154.01,0.00032108,15]
[381535398,1756266652149,-332.86615456,0.00032122,15]
[381535399,1756266652161,-151.68876055,0.00032128,15]
[381535400,1756266652171,-335.96,0.00032128,15]
[381535401,1756266652180,-187.40190528,0.00032187,7]
[381535402,1756266652190,-154.01,0.00032208,15]
[381535403,1756266652201,-1860.0,0.0003221,2]
[381535404,1756266652210,-236.003063,0.00032255,2]
[381535405,1756266652220,-68483.0,0.000323,7]
[381535406,1756266652229,-154.01,0.00032308,15]
[381535407,1756266652244,-500.0,0.00032324,2]
[381535408,1756266652254,-154.01,0.00032408,15]
[381535409,1756266652264,-154.25391493,0.00032508,15]
[381535410,1756266652274,-500.0,0.00032598,2]
[381535411,1756266652284,-900.0,0.00032599,7]
[381535412,1756266652293,-1613.0,0.00032693,2]
[381535413,1756266652303,-1960.0,0.00032758,2]
[381535414,1756266652312,-236.003063,0.00032809,30]
[381535415,1756266652505,-500.0,0.00032872,2]
[381535416,1756266652516,-5974.0,0.00032892,3]
[381535417,1756266652525,-6137.21,0.000329,7]
[381535418,1756266652535,-236.003063,0.00032925,90]
[381535419,1756266652544,-161.93172649,0.00033,14]
[381535420,1756266652553,-150.0,0.00033005,2]
[381535421,1756266652563,-500.0,0.00033146,2]
[381535422,1756266652574,-552.340579,0.00033165,2]
[381535423,1756266652583,-251.11897888,0.00033218,2]
[381535424,1756266652593,-169.0,0.00033226,30]
[381535425,1756266652602,-150.0,0.00033263,2]
[381535426,1756266652611,-2060.0,0.00033306,2]
[381535427,1756266652620,-500.0,0.0003342,2]
[381535428,1756266652630,-838.0,0.00033471,3]
[381535429,1756266652639,-200.9967227,0.000335,2]
[381535430,1756266652649,-261.37,0.0003352,2]
[381535431,1756266652659,-13418.09,0.000336,14]
[381535432,1756266652670,-500.0,0.00033694,2]
[381535433,1756266652682,-27482.7117237,0.00033699,2]
[381535434,1756266652700,-150.0,0.000337,5]
[381535435,1756266652710,-1871.06712213,0.00033712,21]
[381535436,1756266652719,-5000.0,0.00033768,4]
[381535437,1756266652728,-5173.28,0.000338,7]
[381535438,1756266652739,-150.0,0.00033833,2]
[381535439,1756266652748,-150.0,0.00033833,2]
[381535440,1756266652758,-2160.0,0.00033854,2]
[381535441,1756266652768,-236.003063,0.00033918,30]
[381535442,1756266652778,-974.0,0.00033919,2]
[381535443,1756266652787,-2157.0,0.00033919,2]
[381535444,1756266652797,-638.0,0.00033919,2]
[381535445,1756266652806,-150.0,0.0003393,2]
[381535446,1756266652817,-500.0,0.00033968,2]
[381535447,1756266652827,-300.0,0.00034,120]
[381535448,1756266652836,-236.003063,0.00034028,4]
[381535449,1756266652846,-236.003063,0.0003405,90]
[381535450,1756266652856,-150.0,0.00034106,2]
[381535451,1756266652865,-150.0,0.00034132,7]
[381535452,1756266652875,-512.49169784,0.00034142,5]
[381535453,1756266652884,-292.7184639,0.00034241,2]
[381535454,1756266652894,-900.0,0.00034243,7]
[381535455,1756266652903,-250.0,0.00034248,5]
[381535456,1756266652912,-150.0,0.00034281,2]
[381535457,1756266652921,-68483.0,0.000343,14]
[381535458,1756266652930,-533.472965,0.00034398,2]
[381535459,1756266652940,-742.42103272,0.00034402,2]
[381535460,1756266652949,-150.0,0.00034457,2]
[381535461,1756266652959,-1346.163223,0.00034521,120]
[381535462,1756266652969,-260.4103811,0.00034587,2]
[381535463,1756266652978,-154.0,0.000346,120]
[381535464,1756266652987,-292.29,0.00034632,2]
[381535465,1756266652997,-307.17567929,0.00034796,5]
[381535466,1756266653007,-1500.0,0.00035,120]
[381535467,1756266653016,-10639.11630296,0.00035,2]
[381535468,1756266653025,-652.92958033,0.00035,2]
[381535469,1756266653035,-1817.58518372,0.00035,2]
[381535470,1756266653044,-5407.27417907,0.00035,2]
[381535471,1756266653053,-1724.89862008,0.00035,120]
[381535472,1756266653063,-530.25126148,0.00035,120]
[381535473,1756266653073,-17489.72595328,0.00035,60]
[381535474,1756266653083,-236.003063,0.00035027,30]
[381535475,1756266653093,-236.003063,0.0003513,2]
[381535476,1756266653103,-203.50082234,0.00035151,30]
[381535477,1756266653112,-236.003063,0.00035175,90]
[381535478,1756266653121,-391.26,0.0003542,120]
[381535479,1756266653131,-752.857798,0.00035421,2]
[381535480,1756266653140,-1871.06712213,0.00035439,24]
[381535481,1756266653151,-13418.09,0.000355,14]
[381535482,1756266653164,-2258.0,0.00035544,2]
[381535483,1756266653174,-162.26594858,0.00035616,2]
[381535484,1756266653184,-200.0,0.00035756,120]
[381535485,1756266653194,-200.0,0.00035801,120]
[381535486,1756266653204,-900.0,0.00035887,7]
[381535487,1756266653213,-500.0,0.00035939,5]
[381535488,1756266653225,-270.0455652,0.00035956,2]
[381535489,1756266653234,-236.003063,0.00036136,30]
[381535490,1756266653244,-202.86105574,0.0003621,2]
[381535491,1756266653254,-263.8649941,0.0003624,2]
[381535492,1756266653263,-236.003063,0.000363,90]
[381535493,1756266653273,-200.0,0.00036516,120]
[381535494,1756266653282,-164.0,0.00036549,30]
[381535495,1756266653291,-236.003063,0.00036791,4]
[381535496,1756266653301,-150.0,0.00036833,2]
[381535497,1756266653310,-150.0,0.00036833,2]
[381535498,1756266653322,-974.0,0.00036919,2]
[381535499,1756266653331,-2157.0,0.00036919,2]
[381535500,1756266653340,-638.0,0.00036919,2]
[381535501,1756266653349,-208.0,0.0003712,30]
[381535502,1756266653358,-1871.06712213,0.00037166,28]
[381535503,1756266653367,-280.03725112,0.00037325,2]
[381535504,1756266653376,-157.1,0.000375,112]
[381535505,1756266653385,-900.0,0.00037531,7]
[381535506,1756266653395,-500.0,0.00037558,7]
[381535507,1756266653404,-13418.09,0.000376,14]
[381535508,1756266653414,-214.36566579,0.00037753,120]
[381535509,1756266653423,-500.0,0.0003783,5]
[381535510,1756266653432,-164.0,0.00037973,30]
[381535511,1756266653441,-1280.6,0.00038,120]
[381535512,1756266653450,-207.2061002,0.00038,30]
[381535513,1756266653459,-1028.65796324,0.00038,120]
[381535514,1756266653469,-68483.0,0.00038,14]
[381535515,1756266653478,-6137.21,0.00038,7]
[381535516,1756266653487,-15081.42548272,0.00038001,7]
[381535517,1756266653496,-236.003063,0.00038005,2]
[381535518,1756266653505,-208.0,0.0003808,30]
[381535519,1756266653515,-154.0,0.000382,120]
[381535520,1756266653524,-688.67,0.00038356,120]
[381535521,1756266653534,-201.0,0.0003844,49]
[381535522,1756266653543,-537.7127,0.000385,120]
[381535523,1756266653551,-200.0,0.000385,120]
[381535524,1756266653560,-4587.4065621,0.00038526,2]
[381535525,1756266653570,-3162.0,0.00038644,5]
[381535526,1756266653579,-183.83709886,0.0003868,15]
[381535527,1756266653589,-290.39862941,0.00038694,2]
[381535528,1756266653598,-325.30392541,0.000387,120]
[381535529,1756266653607,-1000.0,0.000388,120]
[381535530,1756266653616,-1871.06712213,0.00038892,32]
[381535531,1756266653625,-688.67,0.00038904,120]
[381535532,1756266653634,-706.0,0.00039,120]
[381535533,1756266653643,-208.0,0.0003904,30]
[381535534,1756266653652,-900.0,0.00039175,7]
[381535535,1756266653662,-200.0,0.00039195,120]
[381535536,1756266653671,-445.44284898,0.00039315,5]
[381535537,1756266653680,-900.0,0.0003938,7]
[381535538,1756266653689,-900.0,0.00039395,7]
[381535539,1756266653698,-10514.98910704,0.000394,120]
[381535540,1756266653708,-500.0,0.00039438,7]
[381535541,1756266653717,-500.0,0.00039442,7]
[381535542,1756266653727,-600.0,0.00039451,2]
[381535543,1756266653736,-688.67,0.00039452,120]
[381535544,1756266653745,-1346.163223,0.00039452,120]
[381535545,1756266653754,-900.0,0.00039462,7]
[381535546,1756266653763,-500.0,0.00039545,7]
[381535547,1756266653772,-236.003063,0.00039555,4]
[381535548,1756266653781,-900.0,0.00039574,7]
[381535549,1756266653791,-500.0,0.00039603,7]
[381535550,1756266653800,-200.0,0.00039616,120]
[381535551,1756266653811,-500.0,0.00039629,7]
[381535552,1756266653821,-552.340579,0.00039654,2]
[381535553,1756266653831,-900.0,0.0003967,7]
[381535554,1756266653841,-500.0,0.00039678,7]
[381535555,1756266653850,-200.0,0.0003969,3]
[381535556,1756266653859,-500.0,0.0003976,7]
[381535557,1756266653868,-500.0,0.0003977,7]
[381535558,1756266653878,-500.0,0.00039776,7]
[381535559,1756266653887,-500.0,0.00039806,7]
[381535560,1756266653896,-500.0,0.00039821,5]
[381535561,1756266653905,-150.0,0.00039833,2]
[381535562,1756266653914,-600.0,0.00039862,2]
[381535563,1756266653924,-164.0,0.00039871,90]
[381535564,1756266653933,-900.0,0.00039889,7]
[381535565,1756266653942,-510.80919986,0.00039896,7]
[381535566,1756266653951,-299.85755598,0.000399,120]
[381535567,1756266653961,-299.85755598,0.000399,120]
[381535568,1756266653972,-299.85755598,0.000399,120]
[381535569,1756266653980,-299.85755598,0.000399,120]
[381535570,1756266653989,-299.85755598,0.000399,120]
[381535571,1756266653998,-299.85755598,0.000399,120]
[381535572,1756266654009,-299.85755598,0.000399,120]
[381535573,1756266654019,-299.85755598,0.000399,120]
[381535574,1756266654027,-299.85755598,0.000399,120]
[381535575,1756266654036,-900.0,0.00039914,7]
[381535576,1756266654046,-974.0,0.00039919,2]
[381535577,1756266654055,-2157.0,0.00039919,2]
[381535578,1756266654064,-638.0,0.00039919,2]
[381535579,1756266654075,-500.0,0.00039943,7]
[381535580,1756266654084,-293.85068442,0.00039952,7]
[381535581,1756266654093,-900.0,0.00039978,7]
[381535582,1756266654103,-250.0,0.00039999,31]
[381535583,1756266654112,-500.0,0.00039999,2]
[381535584,1756266654122,-353.0233394,0.00039999,7]
[381535585,1756266654131,-230.21906525,0.00039999,31]
[381535586,1756266654140,-500.0,0.00039999,31]
[381535587,1756266654151,-500.0,0.00039999,31]
[381535588,1756266654162,-451.88374203,0.00039999,2]
[381535589,1756266654171,-265.56287745,0.00039999,31]
[381535590,1756266654181,-500.0,0.00039999,31]
[381535591,1756266654189,-500.0,0.00039999,31]
[381535592,1756266654201,-500.0,0.00039999,31]
[381535593,1756266654210,-273.80903398,0.00039999,31]
[381535594,1756266654220,-500.0,0.00039999,31]
[381535595,1756266654229,-450.01944126,0.00039999,31]
[381535596,1756266654239,-500.0,0.00039999,31]
[381535597,1756266654248,-609.15668402,0.00039999,31]
[381535598,1756266654257,-609.15668402,0.00039999,31]
[381535599,1756266654267,-500.0,0.00039999,31]
[381535600,1756266654276,-609.15668402,0.00039999,31]
[381535601,1756266654286,-609.15668402,0.00039999,31]
[381535602,1756266654296,-609.15668402,0.00039999,31]
[381535603,1756266654306,-609.15668402,0.00039999,31]
[381535604,1756266654316,-609.15668402,0.00039999,31]
[381535605,1756266654326,-609.15668402,0.00039999,31]
[381535606,1756266654336,-843.14451617,0.00039999,31]
[381535607,1756266654345,-843.14451617,0.00039999,31]
[381535608,1756266654354,-500.0,0.0004,2]
[381535609,1756266654363,-801.11854901,0.0004,30]
[381535610,1756266654373,-200.0,0.0004,120]
[381535611,1756266654383,-200.0,0.0004,120]
[381535612,1756266654392,-1500.0,0.0004,120]
[381535613,1756266654401,-208.0,0.0004,30]
[381535614,1756266654410,-150.14264028,0.0004,120]
[381535615,1756266654420,-4219.08,0.0004,60]
[381535616,1756266654429,-27680.2420763,0.0004,120]
[381535617,1756266654438,-579.0,0.0004,120]
[381535618,1756266654448,-160.0,0.0004,3]
[381535619,1756266654457,-160.0,0.0004,120]
[381535620,1756266654467,-160.0,0.0004,30]
[381535621,1756266654476,-217.23771399,0.0004,3]
[381535622,1756266654485,-217.23771399,0.0004,120]
[381535623,1756266654495,-217.23771399,0.0004,30]
[381535624,1756266654504,-160.0,0.0004,3]
[381535625,1756266654513,-688.67,0.0004,120]
[381535626,1756266654522,-232.59867797,0.0004,3]
[381535627,1756266654532,-232.59867797,0.0004,120]
[381535628,1756266654542,-232.59867797,0.0004,30]
[381535629,1756266654550,-417.15472785,0.0004,3]
[381535630,1756266654560,-417.15472785,0.0004,120]
[381535631,1756266654570,-417.15472785,0.0004,30]
[381535632,1756266654579,-160.0,0.0004,3]
[381535633,1756266654588,-160.0,0.0004,120]
[381535634,1756266654598,-160.0,0.0004,30]
[381535635,1756266654607,-425.44119842,0.0004,3]
[381535636,1756266654617,-1023.5887608,0.00040044,2]
[381535637,1756266654626,-900.0,0.00040051,30]
[381535638,1756266654635,-301.1433787,0.00040063,2]
[381535639,1756266654645,-500.0,0.00040065,30]
[381535640,1756266654656,-500.0,0.00040065,30]
[381535641,1756266654665,-500.0,0.00040141,30]
[381535642,1756266654675,-500.0,0.00040178,30]
[381535643,1756266654686,-900.0,0.00040183,30]
[381535644,1756266654695,-900.0,0.00040196,30]
[381535645,1756266654705,-500.0,0.00040199,30]
[381535646,1756266654714,-35569.78251055,0.000402,120]
[381535647,1756266654723,-900.0,0.000402,30]
[381535648,1756266654733,-900.0,0.0004022,30]
[381535649,1756266654742,-900.0,0.00040239,30]
[381535650,1756266654752,-500.0,0.00040262,30]
[381535651,1756266654761,-390.37592636,0.0004027,120]
[381535652,1756266654771,-600.0,0.00040273,2]
[381535653,1756266654781,-9104.06225704,0.00040274,10]
[381535654,1756266654791,-12500.0,0.00040274,10]
[381535655,1756266654801,-500.0,0.00040283,30]
[381535656,1756266654811,-756.25,0.00040319,14]
[381535657,1756266654822,-1661.55,0.00040319,14]
[381535658,1756266654831,-8933.95,0.00040319,14]
[381535659,1756266654841,-500.0,0.00040349,30]
[381535660,1756266654851,-4831.68,0.00040369,30]
[381535661,1756266654861,-500.0,0.0004037,30]
[381535662,1756266654870,-499.3,0.00040371,30]
[381535663,1756266654880,-200.0,0.00040389,120]
[381535664,1756266654890,-500.0,0.0004042,30]
[381535665,1756266654899,-500.0,0.00040452,30]
[381535666,1756266654909,-900.0,0.00040452,30]
[381535667,1756266654918,-688.67,0.00040547,120]
[381535668,1756266654928,-1871.06712213,0.00040619,36]
[381535669,1756266654938,-500.0,0.0004062,30]
[381535670,1756266654947,-500.0,0.00040622,30]
[381535671,1756266654957,-500.0,0.00040633,30]
[381535672,1756266654967,-500.0,0.00040661,30]
[381535673,1756266654977,-500.0,0.00040663,30]
[381535674,1756266654987,-500.0,0.00040672,30]
[381535675,1756266654997,-900.0,0.00040677,30]
[381535676,1756266655007,-600.0,0.00040684,2]
[381535677,1756266655017,-537.7127,0.000407,120]
[381535678,1756266655027,-500.0,0.00040705,30]
[381535679,1756266655036,-299.85755598,0.00040721,120]
[381535680,1756266655045,-900.0,0.0004078,30]
[381535681,1756266655055,-500.0,0.00040798,30]
[381535682,1756266655065,-85939.26939557,0.000408,120]
[381535683,1756266655076,-82303.74573609,0.000408,120]
[381535684,1756266655086,-900.0,0.00040819,7]
[381535685,1756266655095,-9308.99523644,0.00040821,61]
[381535686,1756266655104,-480.0,0.00040821,120]
[381535687,1756266655114,-482.88986836,0.00040821,120]
[381535688,1756266655123,-480.0,0.00040821,120]
[381535689,1756266655268,-480.0,0.00040821,120]
[381535690,1756266655293,-480.0,0.00040821,120]
[381535691,1756266655303,-480.0,0.00040821,120]
[381535692,1756266655312,-480.0,0.00040821,120]
[381535693,1756266655324,-480.0,0.00040821,120]
[381535694,1756266655333,-480.0,0.00040821,120]
[381535695,1756266655343,-480.0,0.00040821,120]
[381535696,1756266655352,-438.11780381,0.00040821,120]
[381535697,1756266655361,-480.0,0.00040821,120]
[381535698,1756266655371,-480.0,0.00040821,120]
[381535699,1756266655380,-612.77701107,0.00040821,120]
[381535700,1756266655389,-480.98182289,0.00040821,120]
[381535701,1756266655399,-480.0,0.00040821,120]
[381535702,1756266655409,-319.70777967,0.00040821,120]
[381535703,1756266655419,-480.0,0.00040821,120]
[381535704,1756266655430,-480.0,0.00040821,120]
[381535705,1756266655439,-480.0,0.00040821,120]
[381535706,1756266655448,-480.0,0.00040821,120]
[381535707,1756266655458,-480.0,0.00040821,120]
[381535708,1756266655468,-480.0,0.00040821,120]
[381535709,1756266655477,-480.0,0.00040821,120]
[381535710,1756266655486,-480.0,0.00040821,120]
[381535711,1756266655495,-443.1953117,0.00040821,120]
[381535712,1756266655505,-480.0,0.00040821,120]
[381535713,1756266655517,-480.0,0.00040821,120]
[381535714,1756266655526,-480.0,0.00040821,120]
[381535715,1756266655535,-480.0,0.00040821,120]
[381535716,1756266655545,-480.0,0.00040821,120]
[381535717,1756266655554,-480.0,0.00040821,120]
[381535718,1756266655563,-480.0,0.00040821,120]
[381535719,1756266655574,-480.0,0.00040821,120]
[381535720,1756266655584,-480.0,0.00040821,120]
[381535721,1756266655594,-480.0,0.00040821,120]
[381535722,1756266655604,-347.74497051,0.00040821,120]
[381535723,1756266655613,-480.0,0.00040821,120]
[381535724,1756266655623,-480.0,0.00040821,120]
[381535725,1756266655635,-480.0,0.00040821,120]
[381535726,1756266655644,-480.0,0.00040821,120]
[381535727,1756266655653,-480.0,0.00040821,120]
[381535728,1756266655665,-480.0,0.00040821,120]
[381535729,1756266655674,-480.0,0.00040821,120]
[381535730,1756266655684,-480.0,0.00040821,120]
[381535731,1756266655693,-480.0,0.00040821,120]
[381535732,1756266655703,-400.0,0.00040821,120]
[381535733,1756266655713,-236.23698014,0.00040821,120]
[381535734,1756266655723,-480.0,0.00040821,120]
[381535735,1756266655732,-481.88664325,0.00040821,120]
[381535736,1756266655742,-481.88076988,0.00040821,120]
[381535737,1756266655752,-480.0,0.00040821,120]
[381535738,1756266655761,-482.36969083,0.00040821,120]
[381535739,1756266655771,-480.0,0.00040821,120]
[381535740,1756266655781,-482.47693872,0.00040821,120]
[381535741,1756266655792,-480.0,0.00040821,120]
[381535742,1756266655802,-480.0,0.00040821,120]
[381535743,1756266655812,-480.0,0.00040821,120]
[381535744,1756266655823,-480.0,0.00040821,120]
[381535745,1756266655833,-480.0,0.00040821,120]
[381535746,1756266655843,-480.0,0.00040821,120]
[381535747,1756266655852,-480.0,0.00040821,120]
[381535748,1756266655863,-482.4674001,0.00040821,120]
[381535749,1756266655872,-480.0,0.00040821,120]
[381535750,1756266655882,-480.0,0.00040821,120]
[381535751,1756266655892,-480.0,0.00040821,120]
[381535752,1756266655901,-480.0,0.00040821,120]
[381535753,1756266655911,-480.0,0.00040821,120]
[381535754,1756266655921,-480.0,0.00040821,120]
[381535755,1756266655931,-295.21205292,0.00040821,120]
[381535756,1756266655941,-480.0,0.00040821,120]
[381535757,1756266655950,-480.0,0.00040821,120]
[381535758,1756266655960,-480.0,0.00040821,120]
[381535759,1756266655970,-231.54718855,0.00040821,120]
[381535760,1756266655980,-480.0,0.00040821,120]
[381535761,1756266655990,-480.0,0.00040821,120]
[381535762,1756266655999,-480.0,0.00040821,120]
[381535763,1756266656009,-480.0,0.00040821,120]
[381535764,1756266656019,-480.0,0.00040821,120]
[381535765,1756266656028,-480.0,0.00040821,120]
[381535766,1756266656037,-480.0,0.00040821,120]
[381535767,1756266656047,-480.0,0.00040821,120]
[381535768,1756266656056,-480.0,0.00040821,120]
[381535769,1756266656065,-480.0,0.00040821,120]
[381535770,1756266656077,-480.0,0.00040821,120]
[381535771,1756266656086,-480.0,0.00040821,120]
[381535772,1756266656095,-349.40172221,0.00040821,120]
[381535773,1756266656105,-480.0,0.00040821,120]
[381535774,1756266656114,-457.72594206,0.00040821,120]
[381535775,1756266656124,-480.0,0.00040821,120]
[381535776,1756266656134,-480.0,0.00040821,120]
[381535777,1756266656143,-480.0,0.00040821,120]
[381535778,1756266656153,-483.40621914,0.00040821,120]
[381535779,1756266656165,-480.0,0.00040821,120]
[381535780,1756266656175,-480.0,0.00040821,120]
[381535781,1756266656185,-480.0,0.00040821,120]
[381535782,1756266656194,-482.60154684,0.00040821,120]
[381535783,1756266656205,-518.95,0.00040821,120]
[381535784,1756266656215,-518.95,0.00040821,120]
[381535785,1756266656225,-518.95,0.00040821,120]
[381535786,1756266656238,-518.95,0.00040821,120]
[381535787,1756266656248,-518.95,0.00040821,120]
[381535788,1756266656259,-518.95,0.00040821,120]
[381535789,1756266656269,-518.95,0.00040821,120]
[381535790,1756266656278,-518.95,0.00040821,120]
[381535791,1756266656288,-480.0,0.00040821,120]
[381535792,1756266656298,-518.95,0.00040821,120]
[381535793,1756266656307,-389.20550879,0.00040821,120]
[381535794,1756266656317,-518.95,0.00040821,120]
[381535795,1756266656328,-518.95,0.00040821,120]
[381535796,1756266656338,-518.95,0.00040821,120]
[381535797,1756266656347,-518.95,0.00040821,120]
[381535798,1756266656356,-518.95,0.00040821,120]
[381535799,1756266656365,-518.95,0.00040821,120]
[381535800,1756266656375,-518.95,0.00040821,120]
[381535801,1756266656385,-518.95,0.00040821,120]
[381535802,1756266656394,-518.95,0.00040821,120]
[381535803,1756266656404,-518.95,0.00040821,120]
[381535804,1756266656413,-518.95,0.00040821,120]
[381535805,1756266656427,-518.95,0.00040821,120]
[381535806,1756266656436,-518.95,0.00040821,120]
[381535807,1756266656446,-518.95,0.00040821,120]
[381535808,1756266656458,-519.02091826,0.00040821,120]
[381535809,1756266656467,-480.0,0.00040821,120]
[381535810,1756266656476,-480.0,0.00040821,120]
[381535811,1756266656486,-480.0,0.00040821,120]
[381535812,1756266656495,-480.0,0.00040821,120]
[381535813,1756266656505,-480.0,0.00040821,120]
[381535814,1756266656516,-480.0,0.00040821,120]
[381535815,1756266656526,-480.0,0.00040821,120]
[381535816,1756266656535,-480.0,0.00040821,120]
[381535817,1756266656545,-480.0,0.00040821,120]
[381535818,1756266656555,-480.0,0.00040821,120]
[381535819,1756266656564,-480.0,0.00040821,120]
[381535820,1756266656575,-480.0,0.00040821,120]
[381535821,1756266656584,-480.0,0.00040821,120]
[381535822,1756266656594,-480.0,0.00040821,120]